fUST/lending_fUST_20250821
["ID","MTS","AMOUNT","RATE_DAILY","PERIOD"]
[380417383,1755751839108,-851.78,0.00021917,3]
[380417384,1755751839117,-480.0,0.00021917,3]
[380417385,1755751839126,-685.91,0.00021917,3]
[380417386,1755751839135,-480.0,0.00021917,3]
[380417387,1755751839144,-480.0,0.00021917,3]
[380417388,1755751839153,-874.52,0.00021917,3]
[380417389,1755751839162,-480.0,0.00021917,3]
[380417390,1755751839171,-480.0,0.00021917,3]
[380417391,1755751839180,-542.23,0.00021917,3]
[380417392,1755751839188,-480.0,0.00021917,3]
[380417393,1755751839198,-480.0,0.00021917,3]
[380417394,1755751839208,-480.0,0.00021917,3]
[380417395,1755751839217,-480.0,0.00021917,3]
[380417396,1755751839227,-480.0,0.00021917,3]
[380417397,1755751839236,-480.0,0.00021917,3]
[380417398,1755751839245,-600.92,0.00021917,3]
[380417399,1755751839255,-480.0,0.00021917,3]
[380417401,1755751839264,-480.0,0.00021917,3]
[380417403,1755751839273,-608.95,0.00021917,3]
[380417405,1755751839282,-480.0,0.00021917,3]
[380417407,1755751839291,-480.0,0.00021917,3]
[380417408,1755751839301,-462.93761059,0.00021917,3]
[380417409,1755751839310,-480.0,0.00021917,3]
[380417410,1755751839319,-264.62832098,0.00021917,2]
[380417411,1755751839329,-480.0,0.00021917,3]
[380417412,1755751839338,-1390.66,0.00021917,3]
[380417413,1755751839347,-480.0,0.00021917,3]
[380417415,1755751839356,-480.0,0.00021917,3]
[380417416,1755751839365,-480.0,0.00021917,3]
[380417417,1755751839374,-480.0,0.00021917,3]
[380417418,1755751839383,-2377.53,0.00021917,3]
[380417419,1755751839392,-629.86354644,0.00021917,3]
[380417420,1755751839402,-493.30237783,0.00021917,3]
[380417421,1755751839411,-480.0,0.00021917,3]
[380417422,1755751839420,-480.0,0.00021917,3]
[380417423,1755751839430,-480.0,0.00021917,3]
[380417424,1755751839439,-480.0,0.00021917,3]
[380417425,1755751839449,-480.0,0.00021917,3]
[380417426,1755751839459,-480.0,0.00021917,3]
[380417427,1755751839468,-480.0,0.00021917,3]
[380417428,1755751839477,-480.0,0.00021917,3]
[380417429,1755751839487,-480.0,0.00021917,3]
[380417431,1755751839496,-396.69188472,0.00021917,3]
[380417432,1755751839505,-1059.14,0.00021917,3]
[380417439,1755751839707,-480.0,0.00021917,3]
[380417440,1755751839717,-151.0,0.00021917,2]
[380417441,1755751839727,-480.0,0.00021917,3]
[380417442,1755751839737,-151.0,0.00021917,2]
[380417443,1755751839746,-151.0,0.00021917,2]
[380417445,1755751839754,-151.0,0.00021917,2]
[380417447,1755751839764,-1223.05,0.00021917,3]
[380417449,1755751839772,-480.0,0.00021917,3]
[380417451,1755751839781,-721.45,0.00021917,3]
[380417453,1755751839790,-480.0,0.00021917,3]
[380417455,1755751839799,-480.0,0.00021917,3]
[380417457,1755751839808,-555.28,0.00021917,3]
[380417459,1755751839817,-711.71,0.00021917,3]
[380417461,1755751839826,-213.03124155,0.00021917,2]
[380417463,1755751839835,-151.0,0.00021917,2]
[380417465,1755751839843,-151.0,0.00021917,2]
[380417467,1755751839852,-151.0,0.00021917,2]
[380417468,1755751839861,-480.0,0.00021917,3]
[380417471,1755751839870,-480.0,0.00021917,3]
[380417473,1755751839879,-727.94,0.00021917,2]
[380417475,1755751839888,-151.92906465,0.00021917,2]
[380417477,1755751839897,-574.75,0.00021917,3]
[380417479,1755751839906,-480.0,0.00021917,3]
[380417481,1755751839915,-158.26384925,0.00021917,3]
[380417482,1755751839924,-480.0,0.00021917,3]
[380417483,1755751839933,-480.0,0.00021917,3]
[380417484,1755751839942,-480.0,0.00021917,3]
[380417485,1755751839951,-480.0,0.00021917,3]
[380417486,1755751839961,-480.0,0.00021917,3]
[380417487,1755751839970,-480.0,0.00021917,3]
[380417488,1755751839980,-319.55577123,0.00021917,3]
[380417489,1755751839989,-2193.69,0.00021917,3]
[380417490,1755751839998,-480.0,0.00021917,3]
[380417491,1755751840008,-483.48033356,0.00021917,3]
[380417492,1755751840017,-3039.35,0.00021917,3]
[380417493,1755751840026,-480.0,0.00021917,3]
[380417494,1755751840036,-363.90730767,0.00021917,3]
[380417495,1755751840046,-460.0,0.00021917,3]
[380417496,1755751840055,-480.0,0.00021917,3]
[380417497,1755751840064,-480.0,0.00021917,3]
[380417498,1755751840073,-480.0,0.00021917,3]
[380417499,1755751840084,-480.0,0.00021917,3]
[380417500,1755751840094,-594.48,0.00021917,3]
[380417501,1755751840103,-480.0,0.00021917,3]
[380417502,1755751840113,-4908.51,0.00021917,3]
[380417503,1755751840124,-480.0,0.00021917,3]
[380417504,1755751840134,-480.0,0.00021917,3]
[380417505,1755751840143,-480.0,0.00021917,3]
[380417506,1755751840153,-480.0,0.00021917,3]
[380417507,1755751840162,-460.38459116,0.00021917,3]
[380417508,1755751840171,-480.0,0.00021917,3]
[380417509,1755751840181,-480.0,0.00021917,3]
[380417510,1755751840190,-481.00502341,0.00021917,3]
[380417511,1755751840199,-480.0,0.00021917,3]
[380417512,1755751840210,-1156.21,0.00021917,3]
[380417513,1755751840219,-215.86710461,0.00021917,3]
[380417514,1755751840230,-480.0,0.00021917,3]
[380417515,1755751840243,-480.0,0.00021917,3]
[380417516,1755751840252,-1481.45,0.00021917,3]
[380417517,1755751840261,-349.61184725,0.00021917,3]
[380417518,1755751840277,-4748.14,0.00021917,3]
[380417519,1755751840289,-576.14,0.00021917,3]
[380417520,1755751840299,-480.0,0.00021917,3]
[380417521,1755751840308,-480.0,0.00021917,3]
[380417522,1755751840320,-480.0,0.00021917,3]
[380417523,1755751840330,-1224.91,0.00021917,3]
[380417524,1755751840340,-480.0,0.00021917,3]
[380417525,1755751840350,-550.54,0.00021917,3]
[380417526,1755751840360,-1306.73,0.00021917,3]
[380417527,1755751840369,-480.0,0.00021917,3]
[380417528,1755751840378,-480.0,0.00021917,3]
[380417529,1755751840387,-480.0,0.00021917,3]
[380417530,1755751840396,-480.0,0.00021917,3]
[380417531,1755751840405,-1235.47,0.00021917,3]
[380417532,1755751840414,-480.0,0.00021917,3]
[380417533,1755751840423,-480.0,0.00021917,3]
[380417534,1755751840432,-585.29384539,0.00021917,3]
[380417535,1755751840441,-480.0,0.00021917,3]
[380417536,1755751840450,-480.0,0.00021917,3]
[380417537,1755751840459,-584.8,0.00021917,3]
[380417538,1755751840468,-4250.25,0.00021917,3]
[380417539,1755751840477,-698.77,0.00021917,3]
[380417540,1755751840486,-480.0,0.00021917,3]
[380417541,1755751840495,-1644.08,0.00021917,3]
[380417542,1755751840505,-1510.18,0.00021917,3]
[380417543,1755751840514,-480.0,0.00021917,3]
[380417544,1755751840523,-480.0,0.00021917,3]
[380417545,1755751840532,-151.0,0.00021917,2]
[380417546,1755751840541,-1206.35,0.00021917,3]
[380417547,1755751840550,-634.59,0.00021917,3]
[380417548,1755751840559,-412.85818433,0.00021917,3]
[380417549,1755751840568,-1732.28,0.00021917,3]
[380417550,1755751840577,-480.0,0.00021917,3]
[380417551,1755751840586,-237.59925067,0.00021917,3]
[380417552,1755751840595,-474.79833721,0.00021917,3]
[380417553,1755751840604,-1439.72,0.00021917,3]
[380417554,1755751840614,-480.0,0.00021917,3]
[380417555,1755751840623,-376.00439007,0.00021917,3]
[380417556,1755751840631,-481.3690688,0.00021917,3]
[380417557,1755751840640,-2042.79,0.00021917,3]
[380417558,1755751840651,-480.0,0.00021917,3]
[380417559,1755751840662,-480.0,0.00021917,3]
[380417560,1755751840671,-354.79723471,0.00021917,3]
[380417561,1755751840680,-480.0,0.00021917,3]
[380417562,1755751840690,-480.0,0.00021917,3]
[380417563,1755751840699,-544.52,0.00021917,3]
[380417564,1755751840709,-620.47,0.00021917,3]
[380417565,1755751840718,-480.0,0.00021917,3]
[380417566,1755751840728,-190.00363989,0.00021917,3]
[380417567,1755751840737,-480.0,0.00021917,3]
[380417568,1755751840746,-480.0,0.00021917,3]
[380417569,1755751840755,-480.0,0.00021917,3]
[380417570,1755751840764,-480.0,0.00021917,3]
[380417571,1755751840773,-480.0,0.00021917,3]
[380417572,1755751840782,-730.15,0.00021917,3]
[380417573,1755751840791,-610.43133842,0.00021917,3]
[380417574,1755751840800,-3008.75,0.00021917,3]
[380417575,1755751840808,-480.0,0.00021917,3]
[380417576,1755751840818,-627.67,0.00021917,3]
[380417577,1755751840826,-480.0,0.00021917,3]
[380417578,1755751840835,-480.0,0.00021917,3]
[380417579,1755751840844,-480.0,0.00021917,3]
[380417580,1755751840854,-654.02,0.00021917,3]
[380417581,1755751840863,-480.0,0.00021917,3]
[380417582,1755751840873,-480.0,0.00021917,3]
[380417583,1755751840882,-480.0,0.00021917,3]
[380417584,1755751840891,-511.9,0.00021917,3]
[380417585,1755751840901,-785.42,0.00021917,3]
[380417586,1755751840911,-480.0,0.00021917,3]
[380417587,1755751840921,-1494.01,0.00021917,3]
[380417588,1755751840930,-518.97,0.00021917,3]
[380417589,1755751840939,-480.0,0.00021917,3]
[380417590,1755751840948,-480.0,0.00021917,3]
[380417591,1755751840957,-423.67006438,0.00021917,3]
[380417592,1755751840966,-480.0,0.00021917,3]
[380417593,1755751840974,-2423.76,0.00021917,3]
[380417594,1755751840984,-715.44,0.00021917,3]
[380417595,1755751840993,-480.0,0.00021917,3]
[380417596,1755751841002,-604.93,0.00021917,3]
[380417597,1755751841012,-480.0,0.00021917,3]
[380417598,1755751841021,-1328.84,0.00021917,3]
[380417599,1755751841031,-496.5,0.00021917,3]
[380417600,1755751841040,-237.29349339,0.00021917,3]
[380417601,1755751841049,-481.05580624,0.00021917,3]
[380417602,1755751841058,-440.69476932,0.00021917,3]
[380417603,1755751841067,-1285.14,0.00021917,3]
[380417604,1755751841077,-480.0,0.00021917,3]
[380417605,1755751841087,-480.0,0.00021917,3]
[380417606,1755751841097,-480.0,0.00021917,2]
[380417607,1755751841106,-795.89,0.00021917,3]
[380417608,1755751841115,-480.0,0.00021917,3]
[380417609,1755751841125,-480.0,0.00021917,3]
[380417610,1755751841135,-480.0,0.00021917,3]
[380417611,1755751841144,-480.0,0.00021917,3]
[380417612,1755751841153,-480.0,0.00021917,3]
[380417613,1755751841162,-462.46448707,0.00021917,3]
[380417614,1755751841172,-565.22,0.00021917,3]
[380417615,1755751841183,-480.0,0.00021917,3]
[380417616,1755751841193,-480.0,0.00021917,3]
[380417617,1755751841202,-480.0,0.00021917,3]
[380417618,1755751841212,-500.0,0.00021917,3]
[380417619,1755751841225,-483.64405067,0.00021917,3]
[380417620,1755751841234,-480.0,0.00021917,3]
[380417621,1755751841243,-1743.17,0.00021917,3]
[380417622,1755751841253,-1743.17,0.00021917,3]
[380417623,1755751841263,-1007.67,0.00021917,3]
[380417624,1755751841272,-1743.17,0.00021917,3]
[380417625,1755751841281,-1743.17,0.00021917,3]
[380417626,1755751841290,-1743.17,0.00021917,3]
[380417627,1755751841300,-1743.17,0.00021917,3]
[380417628,1755751841309,-1743.17,0.00021917,3]
[380417629,1755751841317,-1743.17,0.00021917,3]
[380417630,1755751841327,-1743.17,0.00021917,3]
[380417631,1755751841336,-1743.17,0.00021917,3]
[380417632,1755751841345,-480.0,0.00021917,3]
[380417633,1755751841354,-480.0,0.00021917,3]
[380417634,1755751841363,-480.0,0.00021917,3]
[380417635,1755751841372,-6449.66,0.00021917,3]
[380417636,1755751841383,-156.65165441,0.00021917,2]
[380417637,1755751841393,-480.0,0.00021917,3]
[380417638,1755751841401,-480.0,0.00021917,3]
[380417639,1755751841410,-500.0,0.00021917,2]
[380417640,1755751841419,-480.0,0.00021917,3]
[380417641,1755751841429,-1000.0,0.00021917,3]
[380417642,1755751841438,-848.39,0.00021917,3]
[380417643,1755751841447,-513.41,0.00021917,3]
[380417644,1755751841457,-2253.89,0.00021917,3]
[380417645,1755751841466,-480.0,0.00021917,3]
[380417646,1755751841475,-480.0,0.00021917,3]
[380417647,1755751841485,-480.0,0.00021917,3]
[380417648,1755751841495,-480.0,0.00021917,3]
[380417649,1755751841504,-480.0,0.00021917,3]
[380417650,1755751841513,-480.0,0.00021917,3]
[380417651,1755751841522,-480.0,0.00021917,3]
[380417652,1755751841531,-480.0,0.00021917,3]
[380417653,1755751841541,-480.0,0.00021917,3]
[380417654,1755751841550,-2775.55,0.00021917,3]
[380417655,1755751841559,-480.0,0.00021917,3]
[380417656,1755751841568,-524.45,0.00021917,3]
[380417657,1755751841577,-2325.53,0.00021917,3]
[380417658,1755751841586,-1158.97,0.00021917,3]
[380417659,1755751841595,-480.0,0.00021917,3]
[380417660,1755751841605,-480.0,0.00021917,3]
[380417661,1755751841614,-500.48,0.00021917,3]
[380417662,1755751841623,-2141.31,0.00021917,3]
[380417663,1755751841633,-480.0,0.00021917,3]
[380417664,1755751841641,-480.0,0.00021917,3]
[380417665,1755751841651,-480.0,0.00021917,3]
[380417666,1755751841659,-480.0,0.00021917,3]
[380417667,1755751841670,-4299.44,0.00021917,3]
[380417668,1755751841681,-480.0,0.00021917,3]
[380417669,1755751841690,-480.0,0.00021917,3]
[380417670,1755751841699,-617.13,0.00021917,3]
[380417671,1755751841710,-480.0,0.00021917,3]
[380417672,1755751841722,-580.0,0.00021917,3]
[380417673,1755751841731,-2343.66,0.00021917,3]
[380417674,1755751841740,-480.0,0.00021917,3]
[380417675,1755751841750,-480.0,0.00021917,3]
[380417676,1755751841760,-480.0,0.00021917,3]
[380417677,1755751841769,-480.0,0.00021917,3]
[380417678,1755751841779,-480.0,0.00021917,3]
[380417679,1755751841788,-480.0,0.00021917,3]
[380417680,1755751841797,-480.0,0.00021917,3]
[380417681,1755751841806,-480.0,0.00021917,3]
[380417682,1755751841816,-1595.91,0.00021917,3]
[380417683,1755751841825,-480.0,0.00021917,3]
[380417684,1755751841835,-817.32,0.00021917,3]
[380417685,1755751841844,-500.0,0.00021917,2]
[380417686,1755751841853,-811.07,0.00021917,3]
[380417687,1755751841862,-480.0,0.00021917,3]
[380417688,1755751841871,-480.0,0.00021917,3]
[380417689,1755751841880,-679.77,0.00021917,3]
[380417690,1755751841889,-480.0,0.00021917,3]
[380417691,1755751841898,-480.0,0.00021917,2]
[380417692,1755751841907,-151.0,0.00021917,2]
[380417693,1755751841916,-480.0,0.00021917,3]
[380417694,1755751841928,-151.0,0.00021917,2]
[380417695,1755751841937,-500.0,0.00021917,3]
[380417696,1755751841946,-480.0,0.00021917,3]
[380417697,1755751841955,-500.0,0.00021917,3]
[380417698,1755751841964,-605.0,0.00021918,2]
[380417699,1755751841973,-1743.17,0.00021937,3]
[380417700,1755751841982,-500.0,0.00021938,3]
[380417701,1755751841991,-1743.17,0.00021938,3]
[380417702,1755751842000,-1743.17,0.00021938,3]
[380417703,1755751842009,-468.40001593,0.00021939,3]
[380417704,1755751842018,-572.62501276,0.00021939,3]
[380417705,1755751842027,-480.0,0.00021939,3]
[380417706,1755751842036,-480.0,0.00021939,3]
[380417707,1755751842045,-480.0,0.00021939,3]
[380417708,1755751842054,-441.61432537,0.00021939,3]
[380417709,1755751842063,-480.0,0.00021939,3]
[380417710,1755751842071,-480.0,0.00021939,3]
[380417711,1755751842080,-480.0,0.00021939,3]
[380417712,1755751842089,-480.0,0.00021939,3]
[380417713,1755751842098,-480.0,0.00021939,3]
[380417714,1755751842107,-408.28248189,0.00021939,3]
[380417715,1755751842116,-480.0,0.00021939,3]
[380417716,1755751842125,-480.0,0.00021939,3]
[380417717,1755751842134,-480.0,0.00021939,3]
[380417718,1755751842143,-480.0,0.00021939,3]
[380417719,1755751842153,-480.0,0.00021939,3]
[380417720,1755751842163,-480.0,0.00021939,3]
[380417721,1755751842172,-480.0,0.00021939,3]
[380417722,1755751842181,-480.0,0.00021939,3]
[380417723,1755751842191,-480.0,0.00021939,3]
[380417724,1755751842200,-480.0,0.00021939,3]
[380417725,1755751842210,-480.0,0.00021939,3]
[380417726,1755751842219,-480.0,0.00021939,3]
[380417727,1755751842228,-480.0,0.00021939,3]
[380417728,1755751842237,-480.0,0.00021939,3]
[380417729,1755751842246,-612.36,0.00021939,3]
[380417730,1755751842255,-480.0,0.00021939,3]
[380417731,1755751842264,-480.0,0.00021939,3]
[380417733,1755751842273,-480.0,0.00021939,3]
[380417735,1755751842283,-480.0,0.00021939,3]
[380417737,1755751842292,-480.0,0.00021939,3]
[380417738,1755751842301,-1356.09,0.00021939,3]
[380417739,1755751842310,-480.0,0.00021939,3]
[380417740,1755751842319,-480.0,0.00021939,3]
[380417741,1755751842328,-441.13781451,0.00021939,3]
[380417742,1755751842337,-480.0,0.00021939,3]
[380417743,1755751842346,-480.0,0.00021939,3]
[380417745,1755751842355,-304.98048361,0.00021939,3]
[380417747,1755751842364,-480.0,0.00021939,3]
[380417749,1755751842373,-1308.43,0.00021939,3]
[380417750,1755751842382,-318.79471407,0.00021939,3]
[380417752,1755751842391,-480.0,0.00021939,3]
[380417754,1755751842401,-480.0,0.00021939,3]
[380417755,1755751842409,-580.14,0.00021939,3]
[380417756,1755751842418,-480.0,0.00021939,3]
[380417757,1755751842427,-480.0,0.00021939,3]
[380417759,1755751842436,-480.0,0.00021939,3]
[380417760,1755751842445,-480.0,0.00021939,3]
[380417761,1755751842454,-480.0,0.00021939,3]
[380417762,1755751842464,-480.0,0.00021939,3]
[380417763,1755751842473,-480.0,0.00021939,3]
[380417764,1755751842482,-480.0,0.00021939,3]
[380417765,1755751842491,-201.76070544,0.00021939,3]
[380417766,1755751842500,-480.0,0.00021939,3]
[380417767,1755751842509,-480.0,0.00021939,3]
[380417768,1755751842518,-480.0,0.00021939,3]
[380417769,1755751842527,-480.0,0.00021939,3]
[380417770,1755751842536,-895.94,0.00021939,3]
[380417771,1755751842546,-480.0,0.00021939,3]
[380417772,1755751842555,-481.55712861,0.00021939,3]
[380417773,1755751842564,-480.0,0.00021939,3]
[380417774,1755751842572,-480.0,0.00021939,3]
[380417775,1755751842581,-480.0,0.00021939,3]
[380417776,1755751842590,-480.0,0.00021939,3]
[380417777,1755751842599,-239.30581156,0.00021939,3]
[380417778,1755751842608,-462.619141,0.00021939,3]
[380417779,1755751842617,-480.0,0.00021939,3]
[380417780,1755751842626,-480.0,0.00021939,3]
[380417781,1755751842635,-480.0,0.00021939,3]
[380417782,1755751842644,-480.0,0.00021939,3]
[380417783,1755751842653,-480.0,0.00021939,3]
[380417785,1755751842662,-480.0,0.00021939,3]
[380417786,1755751842675,-480.0,0.00021939,3]
[380417787,1755751842683,-480.0,0.00021939,3]
[380417788,1755751842692,-480.0,0.00021939,3]
[380417789,1755751842702,-480.0,0.00021939,3]
[380417790,1755751842711,-480.0,0.00021939,3]
[380417791,1755751842720,-480.0,0.00021939,3]
[380417792,1755751842730,-604.2077643,0.00021939,3]
[380417793,1755751842739,-480.0,0.00021939,3]
[380417794,1755751842748,-480.0,0.00021939,3]
[380417795,1755751842757,-480.0,0.00021939,3]
[380417796,1755751842766,-515.68923938,0.00021939,3]
[380417797,1755751842774,-463.67428083,0.00021939,3]
[380417798,1755751842783,-480.0,0.00021939,3]
[380417799,1755751842792,-480.0,0.00021939,3]
[380417800,1755751842801,-480.0,0.00021939,3]
[380417801,1755751842809,-309.35036426,0.00021939,3]
[380417802,1755751842818,-480.0,0.00021939,3]
[380417803,1755751842827,-480.0,0.00021939,3]
[380417804,1755751842836,-480.0,0.00021939,3]
[380417805,1755751842845,-480.0,0.00021939,3]
[380417806,1755751842855,-480.0,0.00021939,3]
[380417807,1755751842864,-1000.0,0.00021939,3]
[380417808,1755751842873,-480.0,0.00021939,3]
[380417809,1755751842881,-480.0,0.00021939,3]
[380417810,1755751842891,-480.0,0.00021939,3]
[380417811,1755751842900,-480.0,0.00021939,3]
[380417812,1755751842909,-480.0,0.00021939,3]
[380417813,1755751842918,-480.0,0.00021939,3]
[380417814,1755751842927,-480.0,0.00021939,3]
[380417815,1755751842936,-480.0,0.00021939,3]
[380417816,1755751842946,-480.0,0.00021939,3]
[380417817,1755751842956,-480.0,0.00021939,3]
[380417818,1755751842965,-551.78975034,0.00021939,3]
[380417819,1755751842974,-480.0,0.00021939,3]
[380417820,1755751842983,-480.0,0.00021939,3]
[380417821,1755751842993,-480.0,0.00021939,3]
[380417822,1755751843003,-420.15419607,0.00021939,3]
[380417823,1755751843012,-480.0,0.00021939,3]
[380417824,1755751843022,-480.0,0.00021939,3]
[380417825,1755751843031,-480.0,0.00021939,3]
[380417826,1755751843041,-480.0,0.00021939,3]
[380417827,1755751843051,-480.0,0.00021939,3]
[380417828,1755751843060,-480.0,0.00021939,3]
[380417829,1755751843069,-480.0,0.00021939,3]
[380417830,1755751843079,-480.0,0.00021939,3]
[380417831,1755751843088,-500.0,0.00021939,3]
[380417832,1755751843098,-480.0,0.00021939,3]
[380417833,1755751843107,-480.0,0.00021939,3]
[380417834,1755751843116,-480.0,0.00021939,3]
[380417835,1755751843125,-480.0,0.00021939,3]
[380417836,1755751843135,-480.0,0.00021939,3]
[380417837,1755751843145,-480.0,0.00021939,3]
[380417838,1755751843154,-461.30346266,0.00021939,3]
[380417839,1755751843163,-480.0,0.00021939,3]
[380417840,1755751843172,-495.92,0.00021939,3]
[380417841,1755751843182,-480.0,0.00021939,3]
[380417842,1755751843191,-500.0,0.00021939,3]
[380417843,1755751843201,-500.0,0.00021939,3]
[380417844,1755751843215,-500.0,0.00021939,3]
[380417845,1755751843224,-500.0,0.00021939,3]
[380417846,1755751843234,-480.0,0.00021939,3]
[380417847,1755751843243,-480.0,0.00021939,3]
[380417848,1755751843253,-480.0,0.00021939,3]
[380417849,1755751843262,-480.0,0.00021939,3]
[380417850,1755751843272,-480.0,0.00021939,3]
[380417851,1755751843281,-480.0,0.00021939,3]
[380417852,1755751843291,-480.0,0.00021939,3]
[380417853,1755751843301,-480.0,0.00021939,3]
[380417854,1755751843310,-480.0,0.00021939,3]
[380417855,1755751843319,-480.0,0.00021939,3]
[380417856,1755751843328,-480.0,0.00021939,3]
[380417857,1755751843337,-480.0,0.00021939,3]
[380417858,1755751843347,-480.0,0.00021939,3]
[380417859,1755751843356,-480.0,0.00021939,3]
[380417860,1755751843366,-480.0,0.00021939,3]
[380417861,1755751843375,-480.0,0.00021939,3]
[380417862,1755751843384,-480.0,0.00021939,3]
[380417863,1755751843393,-480.0,0.00021939,3]
[380417864,1755751843402,-480.0,0.00021939,3]
[380417865,1755751843412,-480.0,0.00021939,3]
[380417866,1755751843421,-480.0,0.00021939,3]
[380417867,1755751843430,-480.0,0.00021939,3]
[380417868,1755751843440,-520.04,0.00021939,3]
[380417869,1755751843449,-480.0,0.00021939,3]
[380417870,1755751843461,-744.23,0.00021939,3]
[380417871,1755751843471,-480.0,0.00021939,3]
[380417872,1755751843480,-584.73,0.00021939,3]
[380417873,1755751843490,-480.0,0.00021939,3]
[380417874,1755751843499,-480.0,0.00021939,3]
[380417875,1755751843509,-480.0,0.00021939,3]
[380417876,1755751843519,-471.26850053,0.00021939,3]
[380417877,1755751843528,-480.0,0.00021939,3]
[380417878,1755751843537,-480.0,0.00021939,3]
[380417879,1755751843547,-480.0,0.00021939,3]
[380417880,1755751843556,-480.0,0.00021939,3]
[380417881,1755751843566,-406.19382935,0.00021939,3]
[380417882,1755751843728,-480.0,0.00021939,3]
[380417883,1755751843762,-481.17387043,0.00021939,3]
[380417884,1755751843772,-480.0,0.00021939,3]
[380417885,1755751843781,-480.0,0.00021939,3]
[380417886,1755751843791,-482.25162894,0.00021939,3]
[380417887,1755751843800,-480.0,0.00021939,3]
[380417888,1755751843810,-480.0,0.00021939,3]
[380417889,1755751843819,-480.0,0.00021939,3]
[380417890,1755751843829,-480.0,0.00021939,3]
[380417891,1755751843839,-480.0,0.00021939,3]
[380417892,1755751843848,-480.0,0.00021939,3]
[380417893,1755751843858,-480.0,0.00021939,3]
[380417894,1755751843867,-480.0,0.00021939,3]
[380417895,1755751843876,-480.0,0.00021939,3]
[380417896,1755751843885,-480.0,0.00021939,3]
[380417897,1755751843895,-480.0,0.00021939,3]
[380417898,1755751843904,-1743.17,0.00021939,3]
[380417899,1755751843913,-480.0,0.00021939,3]
[380417900,1755751843923,-713.76,0.00021939,3]
[380417901,1755751843932,-480.0,0.00021939,3]
[380417902,1755751843941,-225.45048752,0.00021939,3]
[380417903,1755751843950,-480.0,0.00021939,3]
[380417904,1755751843961,-480.0,0.00021939,3]
[380417905,1755751843970,-480.0,0.00021939,3]
[380417906,1755751843979,-480.0,0.00021939,3]
[380417907,1755751843989,-480.0,0.00021939,3]
[380417908,1755751843998,-480.0,0.00021939,3]
[380417909,1755751844007,-166.11905591,0.0002194,3]
[380417910,1755751844017,-480.0,0.0002194,3]
[380417911,1755751844026,-480.0,0.0002194,3]
[380417912,1755751844036,-620.94,0.0002194,3]
[380417913,1755751844045,-480.0,0.0002194,3]
[380417914,1755751844055,-480.0,0.0002194,3]
[380417915,1755751844065,-153.24579756,0.0002194,2]
[380417916,1755751844074,-480.0,0.0002194,3]
[380417917,1755751844083,-480.0,0.0002194,3]
[380417918,1755751844093,-480.0,0.0002194,3]
[380417919,1755751844102,-480.0,0.0002194,3]
[380417920,1755751844111,-480.0,0.0002194,3]
[380417921,1755751844121,-480.0,0.0002194,3]
[380417922,1755751844130,-480.0,0.0002194,3]
[380417923,1755751844140,-480.0,0.0002194,3]